Workbook

Sheet 20년상반기 결산
A1: 공고 제2020 -16 호
A2: 2020년 상반기 주민학습문화센터 프로그램 수강료 수입·지출내역 공고 「대전광역시 대덕구 주민학습문화센터 설치 및 운영조례」 제10조 제6항의 규정에 따라 2020년 상반기 주민학습문화센터 프로그램 수강료 수입·지출내역을 공고합니다. 2020년 7월 31일 대전광역시 대덕구 비래동장
A5: 수 입 | F5: 지 출 | K5: 잔액
A6: 금액 | F6: 금액 | G6: 지출내역
A7: 5174010 | B7: `19년 하반기 이월금
A8: 3495 | B8: 예금이자
F9: =SUM(J7:J15) -> 2660000 | G9: 매니저활동비
H10: (19. 12~'20. 6월분) | J10: 2660000
B11: 건강수지침 | E11: =E12 -> 40000 | H11: (380,000 x 7개월)
B12: 20000 | C12: x | D12: 2 | E12: =B12*D12 -> 40000
B15: 꽃차만들기 | E15: =SUM(E16:E18) -> 60000
B16: 20000 | C16: x | D16: 3 | E16: =B16*D16 -> 60000
F17: =SUM(J16:J24) -> 0 | G17: 주민학습문화센터
G18: 마을만들기 사업비
B19: 노래교실 | E19: =SUM(E20:E23) -> 760000
B20: 40000 | C20: x | D20: 7 | E20: =B20*D20 -> 280000
B21: 20000 | C21: x | D21: 24 | E21: 480000
B24: 몸짱!요가 | E24: =SUM(E25:E28) -> 820000
A25: =E11+E15+E19+E24+E29+E34+E39 -> 3680000 | B25: 40000 | C25: x | D25: 14 | E25: =B25*D25 -> 560000
B26: 20000 | C26: x | D26: 13 | E26: 260000 | F26: =SUM(J25:J34) -> 950000 | G26: 프로그램운영비
H28: 상반기 현수막5개 | J28: 250000
B29: 다이어트로빅 | E29: =SUM(E30:E33) -> 1400000 | H29: (50,000 x 5개)
B30: 40000 | C30: x | D30: 31 | E30: =B30*D30 -> 1240000
B31: 20000 | C31: x | D31: 8 | E31: 160000 | H31: 강의실 사용임대료 | J31: 700000
B34: 신나는 난타 | E34: =SUM(E35:E36) -> 500000
B35: 40000 | C35: x | D35: 11 | E35: =B35*D35 -> 440000
B36: 20000 | C36: x | D36: 3 | E36: 60000 | F36: =SUM(J35:J40) -> 21960 | G36: 기타운영비
H38: 음악저작권료(1, 2월분) | J38: 21960
B39: 신나는풍물 | E39: =SUM(E40:E44) -> 100000
B40: 20000 | C40: x | D40: 5 | E40: =B40*D40 -> 100000
F42: =SUM(J41:J44) -> 341160 | G42: 예비비
H44: 수강료반환및송금수수료 | J44: 341160
A45: 수입합계 : | B45: =A7+A8+A25 -> 8857505 | F45: 지출합계 : | G45: =F9+F17+F26+F36+F42 -> 3973120 | H45: =F9+F17+F26+F36+F42 -> 3973120 | K45: =B45-H45 -> 4884385
